fUSD/lending_fUSD_20240717
["ID","MTS","AMOUNT","RATE_DAILY","PERIOD"]
[332435253,1721181043635,-635.75904182,0.00019,2]
[332435278,1721181043716,-414.17207254,0.00019,2]
[332435518,1721181046041,-530.0,0.000184,2]
[332435520,1721181046051,-174.28766296,0.00018499,2]
[332435522,1721181046062,-5936.30066854,0.00018499,2]
[332435523,1721181046071,-7979.3516685,0.00019,2]
[332435536,1721181046179,-382.88143247,0.00019,2]
[332435538,1721181046191,-1758.45705467,0.00019,2]
[332435540,1721181046202,-282.71176991,0.00019,2]
[332435542,1721181046213,-751.1855914,0.00019,2]
[332435544,1721181046225,-1216.1141198,0.00019,2]
[332435554,1721181046316,-678.23745722,0.00019,2]
[332435556,1721181046330,-662.63936826,0.00019,2]
[332435558,1721181046343,-6254.49072629,0.00019,2]
[332435560,1721181046355,-389.63124367,0.00019,2]
[332435571,1721181046452,-469.65,0.00019,2]
[332435573,1721181046463,-682.06869489,0.00019,2]
[332436244,1721181492674,3198.62042691,0.00010998,2]
[332436246,1721181579867,181.7125186,0.00010998,2]
[332436247,1721181591702,8403.81686181,0.00010998,2]
[332436248,1721181601847,1420.69901022,0.00010998,2]
[332436249,1721181603044,155.19835221,0.00010998,2]
[332436250,1721181603720,156.15550877,0.00010998,2]
[332436251,1721181605694,263.86295965,0.00010998,2]
[332436252,1721181615722,18806.76171158,0.00010998,2]
[332436253,1721181616051,412.90128019,0.00010998,2]
[332436255,1721181642231,6353.0154911,0.00010998,2]
[332436256,1721181675394,181.15516436,0.00010998,2]
[332436257,1721181719043,179.79239444,0.00010998,2]
[332436258,1721181822747,161.85860374,0.00010998,2]
[332436268,1721182233822,-150.0,0.00011097,2]
[332436269,1721182233832,-300.0,0.00011097,2]
[332436270,1721182233842,-1548.05895763,0.00011098,2]
[332436271,1721182233851,-1139.00185513,0.00011098,2]
[332436272,1721182233861,-1802.75085409,0.00011098,2]
[332436273,1721182233871,-1058.55128067,0.00011098,2]
[332436274,1721182233880,-515.00884165,0.00011098,2]
[332436275,1721182233890,-60.30509536,0.00011098,2]
[332436276,1721182233901,-123.118811,0.00011098,2]
[332436277,1721182233912,-155.0,0.00011098,2]
[332436278,1721182233921,-155.24607024,0.00011098,2]
[332436279,1721182233931,-213.39315218,0.00011098,2]
[332436280,1721182233940,-520.35208775,0.00011098,2]
[332436281,1721182233949,-522.41991759,0.00011098,2]
[332436282,1721182233959,-381.11181493,0.00011098,2]
[332436283,1721182233968,-13091.92939784,0.00011199,2]
[332436284,1721182233977,-255.0,0.00012151,2]
[332436285,1721182233987,-420.0,0.00012193,2]
[332436286,1721182233996,-155.17455973,0.00012273,2]
[332436287,1721182234006,-587.0,0.00013398,2]
[332436288,1721182234015,-1192.98143219,0.00014,2]
[332436289,1721182234025,-200.0,0.00014393,2]
[332436290,1721182234036,-512.01,0.00014438,2]
[332436301,1721182234284,-200.0,0.00014499,2]
[332436302,1721182234295,-12816.28806712,0.000145,2]
[332436303,1721182234305,-4247.28,0.000145,2]
[332436304,1721182234314,-7701.91,0.000145,2]
[332436305,1721182234324,-499.99,0.00014721,2]
[332436306,1721182234333,-823.0,0.00014721,2]
[332436307,1721182234343,-522.17,0.00014822,2]
[332436308,1721182234352,-227.39291056,0.00015832,2]
[332436309,1721182234362,-1152.0,0.00016175,2]
[332436310,1721182234372,-6913.8,0.000162,2]
[332436311,1721182234382,-200.0,0.00016244,2]
[332436312,1721182234391,-195.08,0.00016286,2]
[332436313,1721182234402,-1909.38,0.0001629,2]
[332436314,1721182234412,-3592.77,0.00016338,2]
[332436315,1721182234421,-10028.95,0.00016358,2]
[332436316,1721182234431,-398.65,0.00016416,2]
[332436317,1721182234440,-19644.89,0.00016443,2]
[332436318,1721182234449,-250.0,0.00016449,2]
[332436319,1721182234459,-451.13,0.000165,2]
[332436320,1721182234469,-531.27,0.00016535,2]
[332436321,1721182234479,-227.85,0.00016555,2]
[332436322,1721182234488,-800.0,0.00016618,2]
[332436323,1721182234498,-512.01,0.00016702,2]
[332436324,1721182234507,-250.0,0.00016726,2]
[332436325,1721182234517,-195.24,0.00016736,2]
[332436326,1721182234528,-213.26,0.00016737,2]
[332436327,1721182234539,-150.0,0.00016747,2]
[332436328,1721182234549,-250.0,0.00016747,2]
[332436329,1721182234559,-178.45,0.00017013,2]
[332436330,1721182234569,-418.85,0.00017096,2]
[332436331,1721182234580,-16979.004,0.00017278,2]
[332436332,1721182234590,-1613.0,0.00017773,2]
[332436333,1721182234605,-5000.0,0.00017807,2]
[332436334,1721182234621,-155.0,0.00018081,2]
[332436335,1721182234631,-168.73,0.00018356,2]
[332436336,1721182234641,-155.0,0.00018432,2]
[332436337,1721182234651,-1060.84602059,0.0001862,2]
[332436338,1721182234660,-1017.09385323,0.0001862,2]
[332436339,1721182234671,-800.0,0.00018695,2]
[332436340,1721182234681,-191.14514012,0.00018778,2]
[332436341,1721182234691,-1522.1012,0.000188,2]
[332436342,1721182234701,-192.378,0.000188,2]
[332436343,1721182234711,-7500.0,0.000188,2]
[332436344,1721182234721,-315.29833864,0.000188,2]
[332436345,1721182234731,-2500.0,0.000188,2]
[332436346,1721182234741,-377.10266582,0.000188,2]
[332436347,1721182234751,-213.26,0.0001883,2]
[332436348,1721182234760,-500.0,0.00018847,2]
[332436349,1721182234770,-500.0,0.00018848,2]
[332436350,1721182234780,-500.0,0.00018848,2]
[332436351,1721182234792,-200.0,0.00018848,2]
[332436352,1721182234802,-150.0,0.00018856,2]
[332436353,1721182234812,-155.15695853,0.00018864,2]
[332436354,1721182234822,-907.04798095,0.00018877,2]
[332436355,1721182234831,-789.85303854,0.00018899,2]
[332436356,1721182234841,-379.61313155,0.00018899,2]
[332436357,1721182234852,-344.68933273,0.00018899,2]
[332436358,1721182234861,-2000.0,0.000189,2]
[332436359,1721182234871,-89101.0214,0.000189,2]
[332436360,1721182234881,-2261.0675,0.000189,2]
[332436361,1721182234891,-245000.0,0.000189,2]
[332436362,1721182234900,-211.1838,0.000189,2]
[332436363,1721182234910,-1000.0,0.000189,2]
[332436364,1721182234919,-219.5982557,0.000189,2]
[332436365,1721182234929,-204.00431831,0.000189,2]
[332436366,1721182234938,-544.8343,0.000189,2]
[332436367,1721182234948,-175.89576784,0.000189,2]
[332436368,1721182234958,-582.61637297,0.000189,2]
[332436369,1721182234968,-220.75,0.00018904,3]
[332436370,1721182234977,-282.49174093,0.00018919,2]
[332436371,1721182234986,-155.0,0.00018919,2]
[332436372,1721182234996,-512.01,0.00018966,2]
[332436373,1721182235006,-202.36261918,0.0001898,2]
[332436374,1721182235016,-461509.6334246,0.0001899,2]
[332436375,1721182235025,-150.01,0.00018999,2]
[332436376,1721182235034,-5936.30066854,0.00018999,2]
[332436377,1721182235045,-500.0,0.00018999,2]
[332436378,1721182235054,-41788.0,0.00018999,2]
[332436379,1721182235063,-155.0,0.00018999,2]
[332436380,1721182235074,-223.34802787,0.00018999,2]
[332436381,1721182235083,-583.0,0.00019,2]
[332436382,1721182235093,-93239.44869981,0.00019,2]
[332436383,1721182235105,-22675.2041341,0.00019,2]
[332436384,1721182235115,-74306.44951849,0.00019,2]
[332436385,1721182235126,-1047.7158435,0.00019,2]
[332436386,1721182235137,-992.484,0.00019,2]
[332436387,1721182235148,-1047.0,0.00019,2]
[332436388,1721182235159,-899.99,0.00019,2]
[332436389,1721182235170,-1000.0,0.00019,2]
[332436390,1721182235181,-482.77585744,0.00019,2]
[332436392,1721182238211,-654.34935659,0.00018739,2]
[332436395,1721182238221,-789.85303854,0.00018899,2]
[332436398,1721182238230,-52022.53721466,0.00019,2]
[332436401,1721182238426,-655.82000289,0.00019,2]
[332436402,1721182238438,-1654.53650654,0.00019,2]
[332436403,1721182238449,-296.71721676,0.00019,2]
[332436404,1721182238460,-1072.50233623,0.00019,2]
[332436405,1721182238471,-7015.537408,0.00019,2]
[332436406,1721182238628,-1969.22712928,0.00019,2]
[332436407,1721182238640,-4795.42269386,0.00019,2]
[332436408,1721182238651,-667.76472037,0.00019,2]
[332436409,1721182238661,-326.82220256,0.00019,2]
[332436410,1721182238673,-428001.36364123,0.00019,2]
[332436411,1721182238685,-4693.17062681,0.00019,2]
[332436491,1721182240284,-150.01,0.00018999,2]
[332436493,1721182240294,-700.23946448,0.00019,2]
[332436496,1721182240305,-714.16163612,0.00019,2]
[332436498,1721182241690,-408.45943575,0.0001881,2]
[332436499,1721182241705,-1643.54056425,0.0001881,2]
[332436500,1721182241715,-5936.30066854,0.00018999,2]
[332436501,1721182241726,-5365.43291924,0.00019,2]
[332436502,1721182241738,-9928.55012008,0.00019,2]
[332436503,1721182241748,-938.35073009,0.00019,2]
[332436504,1721182241759,-770.54761456,0.00019,2]
[332436505,1721182241771,-3210.81251125,0.00019,2]
[332436646,1721182243327,-64612.34993996,0.00019,2]
[332436649,1721182243339,-2396.5336603,0.00019,2]
[332436689,1721182243517,-305.20127118,0.00019,2]
[332436693,1721182243530,-394.60066156,0.00019,2]
[332436696,1721182243542,-1093.93961604,0.00019,2]
[332436698,1721182243554,-482.00237009,0.00019,2]
[332436726,1721182243716,-392.29490377,0.00019,2]
[332436729,1721182243728,-31445.4474969,0.00019,2]
[332436732,1721182243739,-4245.39094024,0.00019,2]
[332436735,1721182243751,-616.65881259,0.00019,2]
[332436738,1721182243762,-584.57490796,0.00019,2]
[332436741,1721182243773,-636.87818,0.00019,2]
[332437033,1721182246517,-150.01,0.00018999,2]
[332437035,1721182246527,-653.83545001,0.00018999,2]
[332437037,1721182246540,-3559.32356706,0.00018999,2]
[332437039,1721182246551,-1723.14165147,0.00018999,2]
[332437041,1721182246561,-653615.73158734,0.00019,2]
[332437044,1721182246572,-16994.01969472,0.00019,2]
[332437046,1721182246584,-1595.25934319,0.00019,2]
[332437048,1721182246599,-443.25512633,0.00019,2]
[332437050,1721182246611,-572.85,0.00019,2]
[332437053,1721182246623,-500.0,0.00019,2]
[332437055,1721182246634,-863.61528201,0.00019,2]
[332437057,1721182246645,-3278.93484286,0.00019,2]
[332437059,1721182246656,-27466.2388339,0.00019,2]
[332437062,1721182246667,-1563.91,0.00019,2]
[332437072,1721182246751,-269.38241397,0.00019,2]
[332437669,1721182776676,1000.0,0.0002222,120]
[332437678,1721183166413,-150.0,0.00011097,2]
[332437679,1721183166434,-300.0,0.00011097,2]
[332437680,1721183166454,-250.0,0.00011098,2]
[332437681,1721183173402,-2000.0,0.00011098,2]
[332437682,1721183174614,-272.55943407,0.00011098,2]
[332437683,1721183174832,-1727.44056593,0.00011098,2]
[332437684,1721183175762,-485.06639369,0.00011098,2]
[332437685,1721183175784,-693.29356946,0.00011098,2]
[332437686,1721183175804,-821.64003685,0.00011098,2]
[332437687,1721183177629,-1145.87503981,0.00011098,2]
[332437688,1721183177649,-347.62180904,0.00011098,2]
[332437689,1721183177668,-155.0,0.00011098,2]
[332437690,1721183177688,-155.29755,0.00011098,2]
[332437691,1721183177708,-196.20560115,0.00011098,2]
[332437692,1721183184545,-2.33356749,0.00011098,2]
[332437693,1721183184565,-408.92653095,0.00011098,2]
[332437694,1721183184585,-155.37633985,0.00011098,2]
[332437695,1721183184605,-158.91727404,0.00011098,2]
[332437696,1721183184625,-197.17390221,0.00011098,2]
[332437697,1721183232897,77.27238546,0.00011098,2]
[332437699,1721183284641,1978.75277185,0.0001,2]
[332437701,1721183329841,3523.7902774,0.0001,2]
[332437702,1721183363902,1368.988251,0.0001,2]
[332437727,1721183432549,-379.61313155,0.00011197,2]
[332437728,1721183432559,-2297.45237006,0.000118,2]
[332437729,1721183432570,-1065.86530441,0.00012121,2]
[332437730,1721183432580,-155.0,0.00012273,2]
[332437731,1721183432590,-366.06990043,0.00012302,2]
[332437732,1721183432599,-189.55122496,0.00013,2]
[332437733,1721183432611,-60.44877504,0.00013,2]
[332437734,1721183432620,-21722.08441414,0.00013,2]
[332437735,1721183432631,-4207.06363913,0.00013,2]
[332437736,1721183432642,-3186.15125408,0.00013,2]
[332437737,1721183432653,-1180.12340989,0.00013,2]
[332437738,1721183432662,-577.56142206,0.0001386,2]
[332437739,1721183432674,-7872.43857794,0.0001386,2]
[332437740,1721183432683,-223.46,0.0001389,2]
[332437741,1721183432692,-438.89832086,0.00013921,2]
[332437742,1721183432702,-198.39625256,0.0001399,2]
[332437743,1721183432711,-156.34361951,0.00013999,2]
[332437744,1721183432720,-7471.09458923,0.00014,2]
[332437745,1721183432737,-7604.47297998,0.00014,2]
[332437746,1721183432748,-461.67421702,0.00014,2]
[332437747,1721183432759,-412.81053676,0.00014,2]
[332437748,1721183432770,-3018.95867372,0.00014,2]
[332437750,1721183432781,-1028.79,0.00014,2]
[332437752,1721183432792,-999.78872132,0.00014,2]
[332437753,1721183432803,-1105.63031946,0.00014,2]
[332437754,1721183432814,-634.13454438,0.00014,2]
[332437755,1721183432826,-3553.35923179,0.00014,2]
[332437759,1721183439081,-398.64828018,0.00014,2]
[332437760,1721183439093,-585.41820824,0.00014,2]
[332437761,1721183439104,-1151.80772458,0.00014,2]
[332437762,1721183439115,-521.449959,0.00014,2]
[332437763,1721183439127,-853.37252964,0.00014,2]
[332437764,1721183439138,-17935.41422558,0.00014,2]
[332437765,1721183439148,-714.662132,0.00014,2]
[332437766,1721183439159,-3242.00000018,0.00014,2]
[332437767,1721183439170,-590.68205757,0.00014,2]
[332437768,1721183439181,-35997.81387241,0.00014,2]
[332437769,1721183439193,-13751.74766945,0.00014,2]
[332437770,1721183439207,-710.95025,0.00014,2]
[332437771,1721183439259,-2136.42714314,0.00014,2]
[332437772,1721183439270,-1886.81639794,0.00014,2]
[332437773,1721183439281,-676.53111901,0.00014,2]
[332437774,1721183439292,-1394.65258948,0.00014,2]
[332437775,1721183439304,-626.31081054,0.00014,2]
[332437776,1721183439315,-394.12782113,0.00014,2]
[332437777,1721183439326,-999.39268,0.00014,2]
[332437778,1721183439337,-2821.35211378,0.00014,2]
[332437779,1721183439349,-1847.439928,0.00014,2]
[332437780,1721183439360,-12561.75106199,0.00014,2]
[332437781,1721183439371,-1172871.05571278,0.00014,2]
[332437782,1721183439382,-847652.78216643,0.00014,2]
[332437783,1721183439397,-688.5,0.00014,2]
[332437784,1721183439412,-456.44193468,0.00014,2]
[332437785,1721183439425,-8899.22183636,0.00014,2]
[332437786,1721183439436,-3453.15224832,0.00014,2]
[332437787,1721183439448,-6729.2454671,0.00014,2]
[332437788,1721183439459,-7304.89114917,0.00014,2]
[332437789,1721183439471,-19937.71419319,0.00014,2]
[332437894,1721183440528,-265.1286,0.00014,2]
[332437896,1721183440541,-413.7332465,0.00014,2]
[332437898,1721183440553,-1058.18044309,0.00014,2]
[332437900,1721183440565,-4170.03465609,0.00014,2]
[332437904,1721183440593,-222613.45660476,0.00014,2]
[332437906,1721183440604,-851331.16991955,0.00014,2]
[332437908,1721183440615,-346.4802057,0.00014,2]
[332437911,1721183440627,-3654.8036422,0.00014,2]
[332438003,1721183441686,-9386.32670637,0.00014,2]
[332438005,1721183441699,-500.0,0.00014,2]
[332438007,1721183441711,-16097.14364864,0.00014,2]
[332438010,1721183441722,-403.47012699,0.00014,2]
[332438018,1721183441802,-1009.71667059,0.00014,2]
[332438020,1721183441814,-1192.0,0.00014,2]
[332438023,1721183441826,-455.07799912,0.00014,2]
[332438025,1721183441838,-1852.95989709,0.00014,2]
[332438027,1721183441849,-3981.85142367,0.00014,2]
[332438029,1721183441860,-67829.63283316,0.00014,2]
[332438035,1721183441906,-594.155,0.00014,2]
[332438048,1721183442030,-47517.9920305,0.00014,2]
[332438050,1721183442042,-179295.34172648,0.00014,2]
[332438052,1721183442054,-272.73826962,0.00014,2]
[332438260,1721183444067,-19437.75170967,0.00014,2]
[332438262,1721183444078,-9740.50564142,0.00014,2]
[332438264,1721183444089,-6099.87879838,0.00014,2]
[332438266,1721183444100,-397.00005046,0.00014,2]
[332438269,1721183444111,-19505.78206297,0.00014,2]
[332438271,1721183444122,-261.4769987,0.00014,2]
[332438273,1721183444133,-1200.25651494,0.00014,2]
[332438275,1721183444144,-602.86785046,0.00014,2]
[332438277,1721183444155,-4043.23692891,0.00014,2]
[332438279,1721183444166,-365.0,0.00014,2]
[332438281,1721183444176,-9035.707166,0.00014,2]
[332438283,1721183444187,-461.30189036,0.00014,2]
[332438285,1721183444198,-822.9747023,0.00014,2]
[332438288,1721183444209,-3291.55431609,0.00014,2]
[332438290,1721183444220,-778.91838231,0.00014,2]
[332438516,1721183446443,-8259.64506002,0.00014,2]
[332438518,1721183446454,-16851.56,0.00014,2]
[332438520,1721183446467,-949.65,0.00014,2]
[332438522,1721183446478,-2066.50353201,0.00014,2]
[332438535,1721183446655,-432.05266282,0.00014,2]
[332438536,1721183446666,-349.999995,0.00014,2]
[332438537,1721183446678,-2103.96619709,0.00014,2]
[332438538,1721183446691,-4803.45941549,0.00014,2]
[332438539,1721183446703,-1323.72452143,0.00014,2]
[332438541,1721183446715,-1756.78605947,0.00014,2]
[332438543,1721183446726,-412.1895408,0.00014,2]
[332438546,1721183446737,-5322.75488516,0.00014,2]
[332438548,1721183446749,-2871.0340909,0.00014,2]
[332438550,1721183446760,-565.134902,0.00014,2]
[332438552,1721183446771,-264.208,0.00014,2]
[332438554,1721183446782,-5948.71108862,0.00014,2]
[332438558,1721183446805,-459.4508895,0.00014,2]
[332438560,1721183446816,-418.37649362,0.00014,2]
[332438562,1721183446827,-51860.20552712,0.00014,2]
[332438564,1721183446837,-5917.54944945,0.00014,2]
[332440065,1721183682664,2294.0,0.00010998,2]
[332440066,1721183866237,181.19638679,0.00010998,2]
[332440067,1721184241706,151.0,0.000209,120]
[332440069,1721184266663,159.49,0.00018849,30]
[332440070,1721184400825,613.23,0.00010362,2]
[332440079,1721184587258,412.24565197,0.00010362,2]
[332440080,1721184634496,-150.0,0.00011068,2]
[332440081,1721184634505,-207.0,0.00011097,2]
[332440082,1721184634514,-150.0,0.00011097,2]
[332440083,1721184634523,-300.0,0.00011097,2]
[332440084,1721184634533,-5173.25424198,0.00011098,2]
[332440085,1721184634542,-867.78435109,0.00011098,2]
[332440086,1721184634553,-621.77146932,0.00011098,2]
[332440087,1721184634564,-883.97785601,0.00011098,2]
[332440088,1721184634575,-6.93267316,0.00011098,2]
[332440089,1721184634768,-212.63605006,0.00011098,2]
[332440090,1721184634778,-230.68127678,0.00011098,2]
[332440091,1721184634790,-557.07363909,0.00011098,2]
[332440092,1721184634802,-1967.87950116,0.00011098,2]
[332440093,1721184634811,-298.68593776,0.00011098,2]
[332440094,1721184634820,-223.26976176,0.00011098,2]
[332440095,1721184634829,-305.42073529,0.00011098,2]
[332440096,1721184634838,-155.0,0.00011098,2]
[332440097,1721184634847,-227.41011598,0.00011098,2]
[332440098,1721184634856,-1028.32111097,0.00011098,7]
[332440099,1721184634867,-877.08103307,0.00011098,7]
[332440100,1721184634878,-20.45696254,0.00011098,7]
[332440101,1721184634888,-156.08175444,0.00011098,2]
[332440102,1721184634897,-155.0,0.00011098,2]
[332440103,1721184634907,-72.46128302,0.00011098,2]
[332440104,1721184634936,-254.23876445,0.00011098,2]
[332440105,1721184634948,-536.32025651,0.00011098,2]
[332440106,1721184634958,-155.17013277,0.00011098,2]
[332440107,1721184634968,-2374.50321461,0.00011098,2]
[332440108,1721184634980,-2076.26432403,0.00011098,2]
[332440109,1721184634990,-2492.8258,0.00012021,2]
[332440110,1721184635000,-255.0,0.00012151,2]
[332440111,1721184635009,-420.0,0.00012193,2]
[332440112,1721184635019,-169.08,0.00012227,2]
[332440113,1721184635028,-395.43458797,0.00012242,2]
[332440114,1721184635062,-513.45,0.00012242,2]
[332440115,1721184635073,-91.11541203,0.00012242,2]
[332440116,1721184635083,-250.0,0.0001225,2]
[332440117,1721184635092,-186.17,0.00012254,2]
[332440118,1721184635102,-155.20268929,0.00012273,2]
[332440119,1721184635112,-546.54344815,0.00012302,2]
[332440120,1721184635121,-313.39966667,0.00012304,2]
[332440121,1721184635133,-1539.02033333,0.00012304,2]
[332440122,1721184635142,-155.26574275,0.00012314,2]
[332440123,1721184635152,-957.06,0.00012317,2]
[332440124,1721184635161,-749.81206062,0.00012426,2]
[332440125,1721184635172,-6659.40709401,0.00012426,2]
[332440126,1721184635183,-4472.09084537,0.00012426,2]
[332440127,1721184635192,-765.27,0.00012499,2]
[332440128,1721184635202,-299.99,0.00012499,2]
[332440129,1721184635211,-1080.42,0.00012499,2]
[332440130,1721184635221,-5100.80443964,0.00012523,2]
[332440131,1721184635230,-26547.88,0.00012533,2]
[332440132,1721184635239,-450.06658238,0.0001256,2]
[332440133,1721184635249,-577.09,0.00012593,2]
[332440134,1721184635259,-613.23,0.00012626,2]
[332440135,1721184635268,-66.18108757,0.00012636,2]
[332440136,1721184635279,-183.81891243,0.00012636,2]
[332440137,1721184635288,-499.99,0.00012715,2]
[332440138,1721184635297,-387.14,0.00012715,2]
[332440139,1721184635307,-955.91,0.00012762,2]
[332440140,1721184635316,-262.33,0.00012854,2]
[332440141,1721184635330,-147.96021756,0.00012911,2]
[332440164,1721184637807,-34.80978244,0.00012911,2]
[332440165,1721184637816,-1066.68583398,0.00013,2]
[332440166,1721184637825,-250.0,0.00013,2]
[332440167,1721184637835,-397.15,0.00013169,2]
[332440168,1721184637844,-587.0,0.00013398,2]
[332440169,1721184637853,-1000.0,0.000135,4]
[332440170,1721184637862,-175.06,0.0001359,2]
[332440171,1721184637872,-2100.0,0.000136,4]
[332440172,1721184637881,-250.0,0.00013699,2]
[332440173,1721184637890,-668.18,0.00013699,2]
[332440174,1721184637900,-1297.11,0.00013699,2]
[332440175,1721184637909,-200.0,0.00013699,2]
[332440176,1721184637918,-3200.0,0.000137,5]
[332440177,1721184637928,-1637.46307103,0.00013736,2]
[332440178,1721184637937,-1637.46307103,0.00013736,2]
[332440179,1721184637946,-1000.0,0.00013772,2]
[332440180,1721184637956,-4300.0,0.000138,5]
[332440181,1721184637966,-797.07915,0.0001386,2]
[332440182,1721184637977,-735.13086401,0.00013889,2]
[332440183,1721184637987,-155.31224472,0.00013899,2]
[332440184,1721184638000,-198.853,0.000139,2]
[332440185,1721184638009,-198.46920995,0.000139,2]
[332440186,1721184638018,-805.56569116,0.000139,2]
[332440187,1721184638027,-279.29512999,0.000139,2]
[332440188,1721184638037,-5400.0,0.000139,5]
[332440189,1721184638046,-322.99490946,0.00013921,2]
[332440190,1721184638055,-342.90950327,0.00013921,2]
[332440191,1721184638065,-673.47050865,0.00013921,2]
[332440192,1721184638074,-155.18918966,0.00013989,2]
[332440193,1721184638083,-198.49354233,0.0001399,2]
[332440194,1721184638093,-500.0,0.00013999,2]
[332440195,1721184638102,-227.56593761,0.00013999,2]
[332440196,1721184638111,-395.14754124,0.00013999,2]
[332440197,1721184638121,-1085.23286384,0.00013999,5]
[332440198,1721184638130,-1085.23286384,0.00013999,5]
[332440199,1721184638139,-1085.23286384,0.00013999,5]
[332440200,1721184638149,-1085.23286383,0.00013999,5]
[332440201,1721184638158,-2749.36928451,0.00013999,2]
[332440202,1721184638167,-155.0,0.00013999,2]
[332440203,1721184638176,-304.37001,0.00013999,2]
[332440204,1721184638185,-494.91277936,0.00013999,2]
[332440205,1721184638194,-225.88910423,0.00013999,2]
[332440206,1721184638203,-209.48011449,0.00013999,2]
[332440207,1721184638213,-155.56400494,0.00013999,2]
[332440208,1721184638222,-1133049.14077937,0.00014,2]
[332440209,1721184638234,-847652.78216643,0.00014,2]
[332440210,1721184638245,-2125.34602237,0.00014,2]
[332440211,1721184638257,-405.79384232,0.00014,2]
[332440213,1721184638269,-384.30158449,0.00014,2]
[332440215,1721184638283,-1752.86403658,0.00014,2]
[332440217,1721184638293,-3456336.20077191,0.00014,2]
[332440219,1721184638303,-550.93086878,0.00014021,2]
[332440220,1721184638312,-346.74261503,0.00014099,2]
[332440222,1721184638323,-182.26227377,0.00014121,2]
[332440224,1721184638336,-196.77532771,0.00014393,2]
[332440226,1721184638345,-339.14,0.00014614,2]
[332440228,1721184638354,-823.0,0.00014721,2]
[332440230,1721184638364,-397.15,0.00014815,2]
[332440232,1721184638374,-613.23,0.0001489,2]
[332440234,1721184638383,-1325.80906896,0.00014966,2]
[332440236,1721184638393,-29199.99039132,0.00015,2]
[332440238,1721184638403,-300.0,0.00015,2]
[332440240,1721184638413,-805.56569115,0.00015163,2]
[332440242,1721184638422,-1000.0,0.00015303,2]
[332440244,1721184638432,-186.17,0.00015318,2]
[332440245,1721184638441,-1136.94020699,0.00015335,2]
[332440247,1721184638451,-1056.00948096,0.00015335,2]
[332440249,1721184638461,-673.47050861,0.00015651,2]
[332440251,1721184638472,-655.18215697,0.00015832,2]
[332440253,1721184638482,-745.0,0.000159,2]
[332440255,1721184638491,-5000.0,0.00016,2]
[332440257,1721184638500,-725.31161165,0.00016172,2]
[332440259,1721184638511,-418.0,0.00016175,2]
[332440261,1721184638520,-292.99,0.00016294,2]
[332440263,1721184638529,-292.99,0.00016298,2]
[332440265,1721184638538,-292.99,0.00016303,2]
[332440267,1721184638548,-292.99,0.00016307,2]
[332440269,1721184638558,-292.99,0.00016311,2]
[332440271,1721184638567,-292.99,0.00016316,2]
[332440273,1721184638577,-292.99,0.0001632,2]
[332440274,1721184638586,-292.99,0.00016324,2]
[332440276,1721184638596,-292.99,0.00016328,2]
[332440278,1721184638606,-292.99,0.00016333,2]
[332440280,1721184638615,-292.99,0.00016337,2]
[332440282,1721184638624,-292.99,0.00016341,2]
[332440284,1721184638635,-292.99,0.00016346,2]
[332440286,1721184638644,-292.99,0.0001635,2]
[332440288,1721184638654,-292.99,0.00016354,2]
[332440290,1721184638663,-292.99,0.00016359,2]
[332440292,1721184638673,-797.07916,0.0001636,2]
[332440294,1721184638682,-292.99,0.00016363,2]
[332440296,1721184638691,-292.99,0.00016367,2]
[332440298,1721184638700,-292.99,0.00016371,2]
[332440300,1721184638709,-292.99,0.00016376,2]
[332440301,1721184638719,-805.56569115,0.00016426,2]
[332440302,1721184638728,-339.14,0.00016441,2]
[332440303,1721184638737,-397.15,0.00016461,2]
[332440304,1721184638746,-322.99490946,0.0001658,2]